Cogmind - Beta 11.1 @@@ ROGUE MODE // 2022.06.19 @ 02:40:32 Player: Savant Result: Self-destructed Performance ------------- Evolutions (6) 3000 Regions Visited (23) 4600 Robots Destroyed (204) 1020 Value Destroyed (6641) 6641 Prototype IDs (62) 1240 Alien Tech Used (0) 0 Bonus (356) 356 TOTAL SCORE: 16857 Bonus ------- High Alert Combat Kills 424 Follower Combat Kills 1087 Network Hubs Disabled 600 Met Data Miner 300 A7 Reached Mainframe 300 Friendly Fire -2355 Cogmind --------- Core Integrity 116/1150 Matter 289/300 Energy 18/100 System Corruption 10% Temperature Cool (0) Movement Flying (32) Location -4/Factory Parts ------- > --- POWER (1) -------- (None) > --- PROPULSION (5) --- Advanced Surge Thruster Impulse Thruster Array > --- UTILITY (11) ----- Medium Storage Unit Enhanced Optical Array Advanced Signal Interpreter Advanced Terrain Scanner Improved Melee Analysis Suite Graphene Brace Improved Hacking Suite Advanced Hacking Suite > --- WEAPON (2) ------- Thunder Hammer Lance > --- INVENTORY (10) --- Combat Linear Gravjet Combat Linear Gravjet Cooled Field Propulsion Drive Advanced Sensor Array Long-range Sensor Array Advanced Terrain Scan Processor Improved Cloaking Device Authchip [Propulsion] Improved Component Analysis Suite Advanced System Restoration Module Peak State ------------ > --- POWER ------------ Light Antimatter Reactor > --- PROPULSION ------- Advanced Surge Thruster Field Propulsion Array Impulse Thruster Array > --- UTILITY ---------- Medium Storage Unit Enhanced Optical Array Long-range Sensor Array Advanced Signal Interpreter Advanced Terrain Scanner Improved Melee Analysis Suite Hacking Suite Improved Hacking Suite Improved Hacking Suite Advanced Hacking Suite Improved Component Analysis Suite > --- WEAPON ----------- Thunder Hammer Lance > --- INVENTORY -------- Combat Linear Gravjet Combat Linear Gravjet Cooled Field Propulsion Drive Advanced Sensor Array Advanced Reaction Control System Improved Cloaking Device Graphene Brace Authchip [Propulsion] Advanced System Restoration Module Proton Burst Cannon [Rating: 116] Favorites ----------- Power Light Nuclear Core Engine Ion Engine Power Core Light Nuclear Core Reactor Light Antimatter Reactor Propulsion Improved VTOL Module Treads Improved Treads Leg Flexi-carbon Leg Wheel Wheel Hover Unit Combat Airjet Flight Unit Improved VTOL Module Utility Improved Hacking Suite Device Experimental Sensor Array Storage Medium Storage Unit Processor Advanced Signal Interpreter Hackware Improved Hacking Suite Protection Hardened Light Armor Plating Weapon Power Maul Energy Gun Beamcaster Energy Cannon Heavy Particle Cannon Ballistic Gun Assault Rifle Ballistic Cannon Light Cannon Launcher Mini Grenade Launcher Special Weapon Improved Remote Datajack Impact Weapon Power Maul Slashing Weapon Scythe Piercing Weapon Lance Special Melee Weapon Datajack Build | -11 -10 -10 -9 -9 -9 -8 -8 -7 -7 -7 -7 -6 -6 -6 -6 -6 -6 -5 -5 -5 -4 -4 -4 ------- Run | Scr Mat Min Mat Min Exi Min Mat Fac Low Low Dat Pro Fac Ext Cet Arc Hub Fac Upp Upp Fac Was Fac Slots Evolved 12 | . . . 2 . . . 2 2 . . . . 2 . . . . 2 . . 2 . . Power . | . . . . . . . . . . . . . . . . . . . . . . . . Propulsion 3 | . . . 1 . . . . 1 . . . . . . . . . 1 . . . . . Utility 9 | . . . 1 . . . 2 1 . . . . 2 . . . . 1 . . 2 . . Weapon . | . . . . . . . . . . . . . . . . . . . . . . . . Parts Attached 398 | 6 18 8 57 16 2 4 43 23 2 10 1 1 16 11 9 17 13 51 6 3 36 2 43 Power 24 | 1 1 . 1 2 . . 4 1 . . . . 1 2 . 2 . 2 . . 5 . 2 Engine 8 | 1 1 . 1 2 . . 1 . . . . . . . . . . 1 . . . . 1 Core 11 | . . . . . . . 3 1 . . . . 1 2 . 2 . 1 . . 1 . . Reactor 5 | . . . . . . . . . . . . . . . . . . . . . 4 . 1 Propulsion 120 | 2 6 3 34 10 . . 15 4 . . . . 1 . 2 . 5 23 . . 4 2 9 Treads 32 | 1 3 2 16 5 . . 5 . . . . . . . . . . . . . . . . Leg 5 | . . . . . . . . . . . . . . . . . . 5 . . . . . Wheel 46 | 1 3 1 18 5 . . 9 . . . . . . . . . 1 8 . . . . . Hover 6 | . . . . . . . . . . . . . . . . . . 2 . . 2 2 . Flight 31 | . . . . . . . 1 4 . . . . 1 . 2 . 4 8 . . 2 . 9 Utility 140 | 1 4 . 4 2 . 1 8 11 2 7 1 1 12 6 3 10 2 14 4 3 16 . 28 Device 72 | . . . . 2 . . 2 2 1 6 . 1 8 4 1 5 1 5 2 . 10 . 22 Storage 10 | 1 2 . . . . . 1 1 . . . . . . . . . 2 . . 2 . 1 Processor 13 | . . . 1 . . . 1 2 . . . . 1 . . . . 2 1 1 1 . 3 Hackware 17 | . . . . . . . 1 5 . . . . 3 . . 3 1 . . 1 2 . 1 Protection 28 | . 2 . 3 . . 1 3 1 1 1 1 . . 2 2 2 . 5 1 1 1 . 1 Artifact . | . . . . . . . . . . . . . . . . . . . . . . . . Weapon 114 | 2 7 5 18 2 2 3 16 7 . 3 . . 2 3 4 5 6 12 2 . 11 . 4 Energy Gun 20 | 1 3 1 . . . 1 9 . . . . . . 1 1 1 . . 1 . 1 . . Energy Cannon 19 | . . . . 1 1 1 . 2 . . . . 1 . 2 1 2 5 . . 3 . . Ballistic Gun 13 | 1 . 1 6 1 . . . . . . . . . . . 1 1 1 . . 1 . . Ballistic Cannon 7 | . 1 1 4 . . . . . . . . . . . . . . 1 . . . . . Launcher 10 | . 2 2 2 . . 1 1 . . 1 . . 1 . . . . . . . . . . Special Weapon 1 | . . . . . . . . . . . . . . . . . . . . . 1 . . Impact Weapon 30 | . 1 . 6 . . . 6 2 . . . . . 2 1 1 1 5 1 . 3 . 1 Slashing Weapon 1 | . . . . . . . . 1 . . . . . . . . . . . . . . . Piercing Weapon 5 | . . . . . . . . . . . . . . . . . . . . . 2 . 3 Special Melee Weapon 8 | . . . . . 1 . . 2 . 2 . . . . . 1 2 . . . . . . Unidentified Prototypes 6 | . . . . . . . 2 . . . . . . . 1 . 1 1 . . . . 1 Corrupted Parts 4 | . . . . . . . . . . . . . . . . 1 3 . . . . . . System Corruption 45 | . . . . . . . . . . . . . . . . 15 30 . . . . . . Parts Lost 74 | . . 1 1 5 . 2 10 . . . . . 1 1 2 . 8 24 . . 13 . 6 Power 11 | . . . 1 1 . . 1 . . . . . . 1 . . 1 3 . . 2 . 1 Propulsion 31 | . . . . 1 . . 6 . . . . . . . 1 . 4 15 . . 2 . 2 Utility 23 | . . . . 1 . 1 2 . . . . . 1 . 1 . 3 4 . . 7 . 3 Weapon 9 | . . 1 . 2 . 1 1 . . . . . . . . . . 2 . . 2 . . Highest Loss Streak 13 | . . 1 1 4 . 2 6 . . . . . 1 1 2 . 8 13 . . 5 . 5 To Critical Strikes . | . . . . . . . . . . . . . . . . . . . . . . . . Average Slot Usage (%) 92 | . 99 100 98 99 100 100 98 99 100 100 100 100 93 92 88 92 98 79 48 58 78 59 85 Engine 4 | . 14 14 11 10 11 11 4 . . . . . . . . . . 3 . . . . 1 Core 2 | . . . . . . . 4 7 7 7 7 7 6 5 6 6 5 . . . 1 . . Treads 5 | . 14 14 12 13 11 11 10 . . . . . . . . . . . . . . . . Wheel 8 | . 13 13 19 19 22 22 15 . . . . . . . . . . 12 . . . . . Flight 10 | . . . . . . . . 29 30 30 30 30 20 20 24 26 25 1 5 5 8 5 15 Device 8 | . . . . 10 11 11 14 8 7 6 7 7 5 5 4 10 6 5 7 11 22 10 15 Storage 7 | . 14 14 11 11 11 11 9 7 7 7 7 7 6 6 6 6 6 6 . . 1 5 5 Processor 7 | . . . 6 . . . . 11 15 15 15 15 13 13 6 6 5 8 11 14 12 10 15 Hackware 11 | . . . . . . . 8 16 15 15 15 15 26 26 26 23 33 16 11 14 13 15 17 Protection 6 | . 13 14 14 11 11 11 11 . . . . . . . 1 3 . 2 10 11 2 . . Energy Gun 3 | . 12 5 . . . 9 15 . . . . . . . 1 1 . . . . . . . Energy Cannon 2 | . . . . 10 1 10 1 . . . . . 3 . 2 1 . 5 . . . . . Ballistic Gun 2 | . 8 8 9 3 11 1 . . . . . . . . . 3 . . . . . . . Ballistic Cannon 2 | . 5 13 9 7 . . . . . . . . . . . . . . . . . . . Impact Weapon 3 | . 1 . 2 . . . . 6 7 7 7 7 6 12 5 . 5 2 . . 3 . 1 Special Melee Weapon 1 | . . . . . 9 . . 6 7 6 7 7 . . . . 5 . . . . . . Naked Turns . | . . . . . . . . . . . . . . . . . . . . . . . . Heaviest Build 103 | 14 53 53 60 60 59 62 103 22 22 20 22 20 25 23 35 47 22 42 8 5 41 12 34 Greatest Support 80 | 10 10 10 26 26 26 26 26 20 20 20 20 20 23 23 23 21 32 80 6 6 41 16 35 Greatest Overweight (x) 9 | 1 5 5 5 5 2 2 9 1 1 . 1 . 1 . 1 2 3 4 1 . . . 1 Average Overweight (x) . | . 4 5 2 2 2 2 4 . . . . . . . . . . . . . . . . Largest Inventory Capacity 25 | 8 20 20 20 20 20 20 25 25 10 10 10 10 10 10 10 10 10 10 5 5 15 10 10 Average Capacity 14 | 6 19 20 20 20 20 20 24 10 10 10 10 10 10 10 10 10 10 9 5 5 7 10 10 Most Carried 25 | 5 18 20 20 20 20 20 25 24 10 10 10 10 10 10 10 10 10 10 5 5 15 10 10 Average Carried 13 | 2 13 18 19 19 20 19 23 10 10 10 10 9 9 9 9 9 9 9 4 5 6 10 9 Final Capacity 25 | 8 20 20 20 20 20 20 25 10 10 10 10 10 10 10 10 10 10 5 5 5 10 10 10 Final Carried 25 | 5 17 20 20 20 20 20 25 10 10 10 10 10 10 10 10 10 10 4 5 5 10 10 10 Class Distribution -------------------- 34% | Mutant 26% | Hacker-Sprinter 17% | Hacker-Mutant 11% | Scavenger-Mutant 4% | Hacker-Scout Dominant Class ---------------- Mutant | -10/Materials Mutant | -10/Mines Mutant | -9/Materials Mutant | -9/Mines Mutant | -9/Exiles Mutant | -8/Mines Scavenger-Mutant | -8/Materials Hacker-Sprinter | -7/Factory Hacker-Sprinter | -7/Lower Caves Hacker-Sprinter | -7/Lower Caves Hacker-Sprinter | -7/Data Miner Hacker-Sprinter | -6/Proximity Caves Hacker-Sprinter | -6/Factory Hacker-Sprinter | -6/Extension Hacker-Mutant | -6/Cetus Hacker-Mutant | -6/Archives Wizard-Sprinter | -6/Hub_04(d) Hacker-Mutant | -5/Factory Hacker-Mutant | -5/Upper Caves Hacker-Mutant | -5/Upper Caves Hacker-Mutant | -4/Factory Hacker-Mutant | -4/Waste Hacker-Scout | -4/Factory Resources | -11 -10 -10 -9 -9 -9 -8 -8 -7 -7 -7 -7 -6 -6 -6 -6 -6 -6 -5 -5 -5 -4 -4 -4 ----------- Run | Scr Mat Min Mat Min Exi Min Mat Fac Low Low Dat Pro Fac Ext Cet Arc Hub Fac Upp Upp Fac Was Fac Matter Collected 5319 | 237 427 83 1069 279 10 97 411 186 69 162 . 28 160 105 85 423 99 520 66 30 345 . 428 Remotely . | . . . . . . . . . . . . . . . . . . . . . . . . Salvage Created 8392 | . 464 100 1073 313 . 105 1262 186 . 25 . 30 249 298 262 554 708 1621 30 . 655 . 457 Parts 357 | . 28 19 70 16 . 7 78 1 . 4 . . 4 4 8 26 25 24 . . 23 . 20 Haulers Intercepted 8 | . 1 . 4 . . . 2 . . . . . . . . . 1 . . . . . . Recyclers Shooed 5 | . . . . . . . . . . . . . . . . . . 3 . . 1 . 1 Parts Field Recycled . | . . . . . . . . . . . . . . . . . . . . . . . . Retrieved Matter . | . . . . . . . . . . . . . . . . . . . . . . . . Parts Self-Destructed 11 | . . . . . . . . . . 2 . 2 . . . . . . 2 5 . . . Prevented 3 | . . . . . . . . . . . . 3 . . . . . . . . . . . Kills | -11 -10 -10 -9 -9 -9 -8 -8 -7 -7 -7 -7 -6 -6 -6 -6 -6 -6 -5 -5 -5 -4 -4 -4 ------- Run | Scr Mat Min Mat Min Exi Min Mat Fac Low Low Dat Pro Fac Ext Cet Arc Hub Fac Upp Upp Fac Was Fac Combat Hostiles Destroyed 125 | . 12 8 26 8 . 6 22 . . 3 . . 1 4 2 4 6 13 . . 8 . 2 Melee 15 | . . . . . . . 1 . . . . . . 2 . . . 6 . . 4 . 2 Guns 29 | . 7 1 2 3 . . 16 . . . . . . . . . . . . . . . . Cannons 29 | . 1 1 16 5 . 1 1 . . . . . . . . . . 2 . . 2 . . AOE 32 | . 4 6 8 . . 5 2 . . 3 . . . . . . 4 . . . . . . Classes Destroyed 18 | . 5 1 2 . . . 3 1 . . . 1 . . 1 . 2 1 . . 1 . . Worker 7 | . . . . . . . 1 . . . . . . . . . 5 1 . . . . . Builder 14 | . 1 . 1 . . . 3 3 . . . . 4 . . . 1 1 . . . . . Tunneler 2 | . . . . . . . . . . . . . . . . . 1 . . . . . 1 Hauler 8 | . 1 . 4 . . . 2 . . . . . . . . . 1 . . . . . . Recycler 14 | . 1 . 1 . . . 2 1 . . . . . . . . . 6 . . 1 . 2 Minesweeper 2 | . . . . . . . . . . . . 1 . . . . . . 1 . . . . Mechanic 1 | . . . . . . . . 1 . . . . . . . . . . . . . . . Operator 12 | . . 1 1 1 . . . . . . . . . . . 6 2 . . . . . 1 Drone 1 | . . . . . . . . . . . . . . . . . . . . . 1 . . Watcher 18 | . . . 2 . . . 1 1 . . . . 3 2 . . 2 3 . . 3 . 1 Swarmer 34 | . 6 6 10 1 . 3 4 . . 3 . . . . . . . . . . 1 . . Grunt 47 | . 6 2 7 6 . 3 10 . . . . . . 3 . . 3 7 . . . . . Duelist 2 | . . . . . . . 1 . . . . . . . . . . 1 . . . . . Protector 2 | . . . . . . . . . . . . . . . . . 1 1 . . . . . Sentry 22 | . . . 9 . . . 6 . . . . . . . . 4 1 1 . . 1 . . Hunter 7 | . . . . . . . 1 . . . . . 1 1 . . 1 1 . . 2 . . Programmer 7 | . . . . . . . . . . . . . . . . . . 2 . . 3 . 2 Cetus Guard 2 | . . . . . . . . . . . . . . . 2 . . . . . . . . Savage 1 | . . . . . . . . . . . . . . . 1 . . . . . . . . Best Kill Streak 14 | . 4 3 5 3 . 6 7 3 . 3 . 1 2 1 1 2 14 6 1 . 3 . 2 Combat Bots Only 6 | . 3 3 4 3 . 6 5 . . 3 . . 1 1 1 2 5 6 . . 2 . 2 Max Kills in Single Turn 12 | . 2 3 5 1 . 3 3 1 . 1 . 1 1 1 1 1 12 2 1 . 1 . 1 Gunslinging . | . . . . . . . . . . . . . . . . . . . . . . . . Exploded 4 | . 1 2 4 . . 3 2 . . 1 . . . . . . 4 . . . . . . Melee 1 | . . . . . . . 1 . . . . . . 1 . . . 1 . . 1 . 1 Uniques/NPCs Destroyed 2 | . . . . 1 . . . . . . . . . . 1 . . . . . . . . YI-UF0 (-9/Mines) A7 (-6/Cetus) Combat | -11 -10 -10 -9 -9 -9 -8 -8 -7 -7 -7 -7 -6 -6 -6 -6 -6 -6 -5 -5 -5 -4 -4 -4 -------- Run | Scr Mat Min Mat Min Exi Min Mat Fac Low Low Dat Pro Fac Ext Cet Arc Hub Fac Upp Upp Fac Was Fac Damage Taken 12100 | . 364 249 570 649 . 261 1302 . . 45 . 10 138 311 199 251 686 3846 . . 1805 . 1414 Core 2733 | . 83 54 67 118 . 46 115 . . 13 . 5 . 65 10 22 209 892 . . 606 . 428 Absorbed by Shields 124 | . . . . . . . . . . . . . . 74 50 . . . . . . . . Redirected to Shielding 216 | . . . 19 . . . . . . . . . . . . . . 138 . . 59 . . Regen/Repaired (Parts) 1317 | . . . 102 . . . 146 76 . . . . 94 . . . . 680 . . . . 219 Core Remaining (%) 62 | 100 . 45 . . . 42 79 . . . . 97 . . . . 64 . . 10 . . . Volleys Fired 361 | . 35 12 48 20 . 8 57 2 . 3 . . 11 4 28 77 7 41 . . 8 . . Largest 2 | . 2 2 2 2 . 2 2 1 . 1 . . 1 1 2 2 1 2 . . 2 . . Hottest 153 | . 75 75 58 110 . 150 150 105 . 30 . . 90 65 153 153 90 125 . . 100 . . Shots Fired 554 | . 61 20 92 40 . 12 112 2 . 3 . . 11 4 29 79 7 68 . . 14 . . Gun 314 | . 43 8 44 12 . 4 102 . . . . . . 4 6 76 1 8 . . 6 . . Cannon 215 | . 11 8 44 28 . 4 8 2 . . . . 11 . 23 3 6 60 . . 7 . . Launcher 24 | . 7 4 4 . . 4 2 . . 3 . . . . . . . . . . . . . Special 1 | . . . . . . . . . . . . . . . . . . . . . 1 . . Kinetic 228 | . 28 9 88 24 . 1 . . . . . . . . . 57 1 16 . . 4 . . Thermal 232 | . . . . 16 . 7 110 2 . . . . 11 . 21 . 6 52 . . 7 . . Explosive 24 | . 7 4 4 . . 4 2 . . 3 . . . . . . . . . . . . . Electromagnetic 69 | . 26 7 . . . . . . . . . . . 4 8 22 . . . . 2 . . Robot Hit Streak 18 | . 11 13 8 4 . 5 13 . . 1 . . . 5 7 12 . 18 . . 17 . . Robot Miss Streak 6 | . 3 2 6 4 . 2 4 . . 1 . . . . 2 6 . 2 . . 1 . . Penetration Max 1 | . . . . . . . . . . . . . . . . 1 . 1 . . . . . Secondary Targets 2 | . . . . . . . 2 . . . . . . . . . . . . . . . . Max Gunslinging Chain 1 | . . . . . . . 1 . . . . . . . . . . . . . . . . Shots Hit Robots 489 | . 35 14 60 22 4 8 86 6 . 1 1 1 8 22 22 50 3 86 1 . 28 . 31 Core Hits 239 | . 20 11 37 17 . 11 40 . . 5 . . 1 1 7 20 35 23 . . 5 . 6 Critical Kills 8 | . . . . . . . . . . . . . . 1 . 1 . 5 . . 1 . . Critical Parts Destroyed 39 | . . . 2 . . . 2 1 . . . . 4 8 1 . 3 11 . . 6 . 1 Critical Strikes 61 | . . . 4 . . . 8 1 . . . . 4 10 2 1 3 18 . . 8 . 2 Burn 6 | . . . . . . . 6 . . . . . . . . . . . . . . . . Destroy 1 | . . . . . . . . . . . . . . . . 1 . . . . . . . Blast 4 | . . . 2 . . . . . . . . . . . . . . 2 . . . . . Corrupt 2 | . . . . . . . . . . . . . . . 1 . . . . . 1 . . Smash 47 | . . . 2 . . . 2 1 . . . . 4 10 1 . 3 16 . . 7 . 1 Impale 1 | . . . . . . . . . . . . . . . . . . . . . . . 1 Melee Attacks 359 | . 1 . 10 . 5 . 15 15 3 32 1 10 70 25 7 . 20 48 1 . 33 . 63 Impact 304 | . 1 . 10 . . . 15 15 3 32 . 10 70 25 7 . 20 48 1 . 30 . 17 Slashing . | . . . . . . . . . . . . . . . . . . . . . . . . Piercing 49 | . . . . . . . . . . . . . . . . . . . . . 3 . 46 Sneak Attacks 41 | . 1 . 4 . 4 . 4 5 . . 1 1 4 6 2 . . 2 1 . 2 . 4 Combat Hostiles 6 | . . . . . . . . . . . . . . 5 . . . . . . 1 . . Follow-up Attacks 7 | . . . 1 . . . . . . . . . . 1 . . . 1 . . . . 4 Damage Inflicted 20481 | . 1028 673 1810 485 . 742 2479 598 . 180 . 125 619 1551 747 1242 1795 3527 85 . 1316 . 1479 Guns 4184 | . 389 78 374 171 . 46 1467 . . . . . . 61 107 1176 . 213 . . 102 . . Cannons 3324 | . 74 106 515 314 . 100 52 . . . . . . . 418 66 . 1489 . . 190 . . Explosions 4127 | . 481 489 486 . . 596 354 . . 180 . . . . . . 1541 . . . . . . Melee 8846 | . 84 . 435 . . . 606 598 . . . 125 619 1490 222 . 254 1825 85 . 1024 . 1479 Ramming . | . . . . . . . . . . . . . . . . . . . . . . . . Kinetic 2894 | . 218 106 889 281 . 24 . . . . . . . . . 844 . 474 . . 58 . . Thermal 3858 | . 105 103 . 204 . 122 1519 . . . . . . . 387 . . 1228 . . 190 . . Explosive 2378 | . 376 386 486 . . 596 354 . . 180 . . . . . . . . . . . . . Electromagnetic 2505 | . 245 78 . . . . . . . . . . . 61 138 398 1541 . . . 44 . . Impact 7529 | . 84 . 435 . . . 606 598 . . . 125 619 1490 222 . 254 1825 85 . 1024 . 162 Slashing . | . . . . . . . . . . . . . . . . . . . . . . . . Piercing 1317 | . . . . . . . . . . . . . . . . . . . . . . . 1317 Highest Corruption 40 | . 1 1 . . . . 2 1 1 1 1 1 . . . 15 40 6 2 2 3 8 10 Average Corruption 2 | . 1 1 . . . . 2 1 1 1 1 1 . . . 9 18 3 2 2 2 6 4 Corruption Purged 30 | . . . . . . . . . . . . . . . . 15 . 4 . . . . 11 Corruption Blocked . | . . . . . . . . . . . . . . . . . . . . . . . . Effects 97 | . 6 5 . . . . 19 5 1 9 . 5 . . . 7 5 5 7 1 10 2 10 Message Errors 30 | . 1 4 . . . . 5 3 . 2 . 2 . . . 2 1 2 2 . 2 . 4 Matter Fused 19 | . 4 . . . . . . 1 . 3 . 1 . . . 3 1 . 1 . 2 . 3 Heat Flow Errors 13 | . 1 1 . . . . 3 . . 2 . . . . . . . 2 . . 3 1 . Energy Discharges 14 | . . . . . . . 6 . . 1 . 1 . . . . 1 1 . . 1 1 2 Parts Rejected 1 | . . . . . . . . . . . . . . . . . . . . . 1 . . Data Loss (minor) 12 | . . . . . . . 3 . 1 1 . 1 . . . 1 . . 2 1 1 . 1 Data Loss (major) 5 | . . . . . . . 2 1 . . . . . . . . . . 2 . . . . Misdirections 2 | . . . . . . . . . . . . . . . . . 2 . . . . . . Weapon Failures 1 | . . . . . . . . . . . . . . . . 1 . . . . . . . Overload Shots . | . . . . . . . . . . . . . . . . . . . . . . . . Overflow Damage 4338 | . 22 . 171 2 . 11 164 481 . . . 40 456 819 147 . 319 768 63 . 495 . 380 Projectiles 81 | . . . . 2 . . . . . . . . . . . . . 79 . . . . . Explosions 137 | . 22 . 36 . . 11 3 . . . . . . . . . 65 . . . . . . Melee 4120 | . . . 135 . . . 161 481 . . . 40 456 819 147 . 254 689 63 . 495 . 380 Knockbacks 33 | . 1 1 1 2 . . 4 3 . . . 1 3 1 2 . 2 10 . . 1 . 1 Impact 25 | . . . . . . . 3 3 . . . 1 3 1 2 . 2 8 . . 1 . 1 Kinetic 7 | . 1 1 1 2 . . . . . . . . . . . . . 2 . . . . . Secondary 1 | . . . . . . . 1 . . . . . . . . . . . . . . . . Self-Inflicted Damage 482 | . 30 88 52 . . 50 70 . . . . . . . . . 192 . . . . . . Shots 11 | . 1 3 1 . . 2 2 . . . . . . . . . 2 . . . . . . Rammed . | . . . . . . . . . . . . . . . . . . . . . . . . Targets Rammed . | . . . . . . . . . . . . . . . . . . . . . . . . Kicked . | . . . . . . . . . . . . . . . . . . . . . . . . Crushed . | . . . . . . . . . . . . . . . . . . . . . . . . Highest Temperature 413 | . 228 270 48 99 . 180 413 58 . 164 . . 117 109 324 225 120 283 . . 244 . . Average Temperature 66 | . 71 127 10 33 . 78 73 26 . 75 . . 39 61 138 86 61 29 . . 116 . . Received Heat Transfer 2916 | . 135 90 126 126 . 72 603 . . . . . . 78 18 54 114 1242 . . 225 . 33 Effects 1 | . . . . . . . . . . . . . . . 1 . . . . . . . . Shutdowns 1 | . . . . . . . . . . . . . . . 1 . . . . . . . . Siege Activations . | . . . . . . . . . . . . . . . . . . . . . . . . Robots Corrupted 8 | . . . . . . . . . . . . . . . 2 4 1 . . . 1 . . Combat Hostiles 7 | . . . . . . . . . . . . . . . 2 4 1 . . . . . . Parts Fried 91 | . . . 4 . . . 2 13 . . . 2 14 7 2 5 12 14 3 . 11 . 2 Impact Corruptions 107 | . . . 6 . . . 4 12 . . . 2 16 15 3 . 7 22 2 . 16 . 2 Robots Melted 1 | . . . . . . . 1 . . . . . . . . . . . . . . . . Combat Hostiles 1 | . . . . . . . 1 . . . . . . . . . . . . . . . . Parts Melted 16 | . . . . . . 1 8 . . . . . . . . . . 7 . . . . . Heat Transferred 6170 | . 100 100 . 296 . 185 3108 . . . . . . . 313 . . 1818 . . 250 . . Parts Sabotaged . | . . . . . . . . . . . . . . . . . . . . . . . . Parts Stolen . | . . . . . . . . . . . . . . . . . . . . . . . . Parts Stripped . | . . . . . . . . . . . . . . . . . . . . . . . . Power Chain Reactions 3 | . 2 1 . . . . . . . . . . . . . . . . . . . . . Missiles Intercepted . | . . . . . . . . . . . . . . . . . . . . . . . . Alert | -11 -10 -10 -9 -9 -9 -8 -8 -7 -7 -7 -7 -6 -6 -6 -6 -6 -6 -5 -5 -5 -4 -4 -4 ------- Run | Scr Mat Min Mat Min Exi Min Mat Fac Low Low Dat Pro Fac Ext Cet Arc Hub Fac Upp Upp Fac Was Fac Peak Influence 1262 | . 273 279 651 296 . 150 264 128 . . . . 245 479 294 211 1262 713 . . 295 77 148 Initial 613 | . . 88 75 253 . . . 46 . . . . . 61 179 110 73 613 . . 108 47 53 Average 189 | . 132 188 340 183 . 61 127 72 . . . . 97 195 225 169 244 584 . . 117 58 47 Maximum Alert Level 4 | . 1 1 2 1 . . 1 . . . . . 1 2 1 1 4 3 . . 1 . . Low Security (%) 67 | 100 68 80 27 52 . 100 77 100 . . . . 95 59 42 72 42 . . . 87 100 100 Level 1 19 | . 31 19 31 47 . . 22 . . . . . 4 36 57 27 41 . . . 12 . . Level 2 12 | . . . 41 . . . . . . . . . . 4 . . 13 88 . . . . . Level 3 . | . . . . . . . . . . . . . . . . . 1 11 . . . . . Level 4 . | . . . . . . . . . . . . . . . . . . . . . . . . Level 5 . | . . . . . . . . . . . . . . . . . . . . . . . . High Security . | . . . . . . . . . . . . . . . . . . . . . . . . Max Security . | . . . . . . . . . . . . . . . . . . . . . . . . Squads Dispatched 42 | . 2 . 4 . . . 1 4 . . . . 6 2 . . 3 3 . . 9 . 8 Investigation 16 | . 2 . 2 . . . . 2 . . . . 4 . . . . . . . 3 . 3 Extermination 7 | . . . . . . . . . . . . . 1 . . . . 1 . . 2 . 3 Reinforcement 17 | . . . 2 . . . 1 2 . . . . 1 2 . . 3 . . . 4 . 2 Assault 2 | . . . . . . . . . . . . . . . . . . 2 . . . . . Garrison . | . . . . . . . . . . . . . . . . . . . . . . . . Intercept . | . . . . . . . . . . . . . . . . . . . . . . . . Searches Triggered . | . . . . . . . . . . . . . . . . . . . . . . . . Data Miner Redirects 6 | . . . . . . . . . . . . . 2 . . . . 1 . . 1 . 2 Construction Impeded 2 | . . . . . . . . 1 . . . . . 1 . . . . . . . . . Haulers Reinforced . | . . . . . . . . . . . . . . . . . . . . . . . . Active Scanning Responses . | . . . . . . . . . . . . . . . . . . . . . . . . Cargo Convoy Interrupts . | . . . . . . . . . . . . . . . . . . . . . . . . Stealth | -11 -10 -10 -9 -9 -9 -8 -8 -7 -7 -7 -7 -6 -6 -6 -6 -6 -6 -5 -5 -5 -4 -4 -4 --------- Run | Scr Mat Min Mat Min Exi Min Mat Fac Low Low Dat Pro Fac Ext Cet Arc Hub Fac Upp Upp Fac Was Fac Distress Signals 20 | . 1 . 6 . . . 1 . . . . . . 1 2 . 2 2 . . 5 . . Communications Jammed . | . . . . . . . . . . . . . . . . . . . . . . . . Distress Signals . | . . . . . . . . . . . . . . . . . . . . . . . . Times Spotted 320 | . 25 8 45 16 . 6 38 3 . 4 . 1 13 21 5 28 16 31 . 2 32 4 22 Peak Tracking Total 16 | . 5 3 6 8 . 6 6 1 . 3 . 1 4 3 5 2 11 10 . 2 9 4 16 Tactical Retreats 25 | . . . 2 1 . . 2 . . 1 . 1 4 1 . . 5 2 . . 5 . 1 Traps | -11 -10 -10 -9 -9 -9 -8 -8 -7 -7 -7 -7 -6 -6 -6 -6 -6 -6 -5 -5 -5 -4 -4 -4 ------- Run | Scr Mat Min Mat Min Exi Min Mat Fac Low Low Dat Pro Fac Ext Cet Arc Hub Fac Upp Upp Fac Was Fac Traps Triggered 10 | . 1 . . . . . 1 1 . . . . 1 2 . . 1 1 . . 1 . 1 Indirectly 1 | . . . . . . . . . . . . . . . . . 1 . . . . . . Trap Hack Attempts . | . . . . . . . . . . . . . . . . . . . . . . . . Triggered . | . . . . . . . . . . . . . . . . . . . . . . . . Disarmed . | . . . . . . . . . . . . . . . . . . . . . . . . Reprogrammed 25 | . . . . . . . . . . . . . 6 . . . 9 . . . 10 . . Reused 16 | . . . 2 . . . . . . . . 2 1 . . . 6 . . . 5 . . Traps Extracted . | . . . . . . . . . . . . . . . . . . . . . . . . Installed 17 | . . . 4 . . . . . . . . 11 . . . . . . . . 2 . . Triggered 17 | . . . 2 . . . . . . . . 2 1 . . . 6 . 1 . 5 . . Most Traps Carried 4 | . . 4 4 . . . . . . . . 4 . . . . . . 2 2 2 . . Machines | -11 -10 -10 -9 -9 -9 -8 -8 -7 -7 -7 -7 -6 -6 -6 -6 -6 -6 -5 -5 -5 -4 -4 -4 ---------- Run | Scr Mat Min Mat Min Exi Min Mat Fac Low Low Dat Pro Fac Ext Cet Arc Hub Fac Upp Upp Fac Was Fac Machines Disabled 54 | . 1 . 4 . . . 3 . . . . . 2 3 2 2 37 . . . . . . Max in Single Turn 20 | . 1 . 1 . . . 1 . . . . . 1 . . 1 20 . . . . . . Garrison Access 7 | . . . . . . . 1 . . . . . 3 . . . 2 . . . 1 . . Network Hub 3 | . . . . . . . . . . . . . . . . . 3 . . . . . . Machines Sabotaged . | . . . . . . . . . . . . . . . . . . . . . . . . Garrisons Compromised . | . . . . . . . . . . . . . . . . . . . . . . . . Overloaded Fab Kills . | . . . . . . . . . . . . . . . . . . . . . . . . Hacking | -11 -10 -10 -9 -9 -9 -8 -8 -7 -7 -7 -7 -6 -6 -6 -6 -6 -6 -5 -5 -5 -4 -4 -4 --------- Run | Scr Mat Min Mat Min Exi Min Mat Fac Low Low Dat Pro Fac Ext Cet Arc Hub Fac Upp Upp Fac Was Fac Machines Accessed 119 | . 8 . 13 . 1 2 11 9 . 1 4 . 30 9 1 . 10 1 1 . 12 . 6 Terminals 69 | . 6 . 8 . . 2 6 4 . . . . 18 9 1 . 8 . . . 5 . 2 Fabricators 10 | . . . . . . . . 3 . . . . 2 . . . . . . . 3 . 2 Repair Stations 9 | . . . 2 . . . 1 2 . . . . 2 . . . . 1 . . . . 1 Recycling Units 11 | . 2 . 2 . . . 1 . . . . . 3 . . . . . . . 2 . 1 Scanalyzers 6 | . . . 1 . . . 2 . . . . . 2 . . . . . . . 1 . . Garrison Access 7 | . . . . . . . 1 . . . . . 3 . . . 2 . . . 1 . . Total Hacks 484 | . 27 . 44 . 1 5 54 31 . 1 30 . 95 34 3 . 45 8 1 . 75 . 30 Successful 358 | . 16 . 26 . 1 3 43 26 . 1 30 . 68 24 1 . 36 8 1 . 52 . 22 Failed 125 | . 10 . 18 . . 2 11 5 . . . . 27 10 2 . 9 . . . 23 . 8 Catastrophic 11 | . . . 1 . . . 1 . . . . . 3 . . . 3 . . . 3 . . Database Lockouts 1 | . 1 . . . . . . . . . . . . . . . . . . . . . . Manual 191 | . 15 . 17 . . 3 9 12 . . . . 40 14 1 . 29 . . . 35 . 16 Terminals 282 | . 22 . 32 . . 5 25 14 . . . . 55 34 3 . 42 . . . 39 . 11 Fabricators 49 | . . . . . . . . 13 . . . . 8 . . . . . . . 20 . 8 Repair Stations 37 | . . . 6 . . . 7 4 . . . . 8 . . . . 8 . . . . 4 Recycling Units 33 | . 5 . 2 . . . 1 . . . . . 12 . . . . . . . 6 . 7 Scanalyzers 39 | . . . 4 . . . 19 . . . . . 9 . . . . . . . 7 . . Garrison Access 11 | . . . . . . . 2 . . . . . 3 . . . 3 . . . 3 . . Terminal Hacks 159 | . 9 . 11 . 1 3 12 8 . 1 30 . 26 18 1 . 19 . 1 . 15 . 4 Record 12 | . . . . . 1 . . . . . 11 . . . . . . . . . . . . Part Schematic 20 | . . . . . . . . 1 . . 11 . 5 1 . . 1 . . . 1 . . Robot Schematic 6 | . . . . . . . . . . . 5 . 1 . . . . . . . . . . Robot Analysis 5 | . 1 . 2 . . 1 . . . . . . . 1 . . . . . . . . . Prototype ID Bank 14 | . 2 . 1 . . . 2 3 . . 3 . . 1 . . 1 . . . 1 . . Open Door 4 | . . . . . . . . . . 1 . . 1 . 1 . . . 1 . . . . Level Access Points 1 | . . . . . . . . . . . . . . . . . 1 . . . . . . Branch Access Points 4 | . 1 . 1 . . . 1 . . . . . 1 . . . . . . . . . . Terminal Index 6 | . . . . . . . 1 . . . . . 1 1 . . 1 . . . 1 . 1 Fabricator Index 1 | . . . . . . . . . . . . . . . . . . . . . 1 . . Repair Station Index 2 | . . . . . . . . . . . . . . 1 . . 1 . . . . . . Recycling Unit Index 1 | . . . . . . . . . . . . . . . . . 1 . . . . . . Scanalyzer Index 2 | . . . . . . . . . . . . . 1 . . . . . . . . . 1 Garrison Index 2 | . . . . . . . . . . . . . 1 . . . 1 . . . . . . Alert Level 3 | . . . . . . . 1 . . . . . 1 1 . . . . . . . . . Unreport Threat 13 | . . . 1 . . . 1 . . . . . 1 6 . . 1 . . . 3 . . Locate Traps 19 | . 1 . 3 . . . 1 1 . . . . 6 3 . . 3 . . . 1 . . Reprogram Traps 5 | . . . . . . . . . . . . . 1 . . . 2 . . . 2 . . Recall Investigation 4 | . . . . . . . . . . . . . 1 . . . . . . . 3 . . Recall Extermination 3 | . . . . . . . . . . . . . 1 . . . . . . . 1 . 1 Recall Reinforcements 2 | . . . . . . . . . . . . . . 1 . . 1 . . . . . . Hauler Manifests 4 | . 1 . 1 . . . 2 . . . . . . . . . . . . . . . . Registered Components 1 | . . . . . . . . . . . . . . . . . 1 . . . . . . Zone Layout 25 | . 3 . 2 . . 2 3 3 . . . . 4 2 . . 4 . . . 1 . 1 Fabricator Hacks 22 | . . . . . . . . 7 . . . . 5 . . . . . . . 6 . 4 Network Status 5 | . . . . . . . . 1 . . . . 2 . . . . . . . 1 . 1 Load Schematic 9 | . . . . . . . . 3 . . . . 1 . . . . . . . 3 . 2 Build 8 | . . . . . . . . 3 . . . . 2 . . . . . . . 2 . 1 Repair Station Hacks 31 | . . . 5 . . . 6 2 . . . . 6 . . . . 8 . . . . 4 Scan Component 15 | . . . 3 . . . 3 1 . . . . 3 . . . . 3 . . . . 2 Repair 14 | . . . 2 . . . 3 1 . . . . 3 . . . . 3 . . . . 2 Refit 2 | . . . . . . . . . . . . . . . . . . 2 . . . . . Recycling Unit Hacks 11 | . 1 . . . . . 1 . . . . . 5 . . . . . . . 2 . 2 Report Inventory 8 | . 1 . . . . . 1 . . . . . 3 . . . . . . . 2 . 1 Retrieve Components 3 | . . . . . . . . . . . . . 2 . . . . . . . . . 1 Scanalyzer 37 | . . . 4 . . . 19 . . . . . 8 . . . . . . . 6 . . Insert Component 18 | . . . 2 . . . 9 . . . . . 4 . . . . . . . 3 . . Analyze 19 | . . . 2 . . . 10 . . . . . 4 . . . . . . . 3 . . Garrison Access Hacks 7 | . . . . . . . 1 . . . . . 3 . . . 2 . . . 1 . . Seal Access 7 | . . . . . . . 1 . . . . . 3 . . . 2 . . . 1 . . Unauthorized Hacks 91 | . 6 . 6 . . . 4 9 . . . . 15 6 . . 15 . . . 22 . 8 Terminals 59 | . 4 . 4 . . . 4 3 . . . . 7 6 . . 15 . . . 13 . 3 Track 13 | . . . . . . . 1 . . . . . 2 . . . 5 . . . 4 . 1 Assimilate 14 | . 2 . 1 . . . . 1 . . . . 1 1 . . 4 . . . 4 . . Botnet 21 | . 1 . 2 . . . 2 2 . . . . 3 3 . . 3 . . . 3 . 2 Disrupt 4 | . . . . . . . . . . . . . . 1 . . 2 . . . 1 . . Operators 7 | . 1 . 1 . . . 1 . . . . . 1 1 . . 1 . . . 1 . . Fabricators 18 | . . . . . . . . 6 . . . . 3 . . . . . . . 7 . 2 Report 2 | . . . . . . . . 1 . . . . . . . . . . . . 1 . . Prioritize 8 | . . . . . . . . 2 . . . . 2 . . . . . . . 3 . 1 Liberate 5 | . . . . . . . . 2 . . . . 1 . . . . . . . 2 . . Haulers 1 | . . . . . . . . . . . . . . . . . . . . . 1 . . Recompile 2 | . . . . . . . . 1 . . . . . . . . . . . . . . 1 Repair Stations . | . . . . . . . . . . . . . . . . . . . . . . . . Recycling Units 14 | . 2 . 2 . . . . . . . . . 5 . . . . . . . 2 . 3 Reject 3 | . . . . . . . . . . . . . 1 . . . . . . . 1 . 1 Recyclers 2 | . . . . . . . . . . . . . 1 . . . . . . . . . 1 Mask 3 | . . . . . . . . . . . . . 1 . . . . . . . 1 . 1 Tunnel 6 | . 2 . 2 . . . . . . . . . 2 . . . . . . . . . . Scanalyzers . | . . . . . . . . . . . . . . . . . . . . . . . . Garrison Access . | . . . . . . . . . . . . . . . . . . . . . . . . Data Cores Recovered . | . . . . . . . . . . . . . . . . . . . . . . . . Used . | . . . . . . . . . . . . . . . . . . . . . . . . Hacking Detections 83 | . 7 . 10 . . 2 9 8 . . . . 23 6 1 . 6 1 . . 6 . 4 Full Trace Events 7 | . . . . . . . . 1 . . . . 2 . . . . . . . 3 . 1 Feedback Events 1 | . . . . . . . . . . . . . 1 . . . . . . . . . . Hackware Fried 1 | . . . . . . . . . . . . . 1 . . . . . . . . . . Feedback Blocked . | . . . . . . . . . . . . . . . . . . . . . . . . Robot Schematics Acquired 6 | . . . . . . . . . . . 5 . 1 . . . . . . . . . . Robots Built . | . . . . . . . . . . . . . . . . . . . . . . . . Authchips . | . . . . . . . . . . . . . . . . . . . . . . . . Time . | . . . . . . . . . . . . . . . . . . . . . . . . Total Robot Build Rating . | . . . . . . . . . . . . . . . . . . . . . . . . Part Schematics Acquired 38 | . . . 2 . . . 9 1 . . 11 . 9 1 . . 1 . . . 4 . . Parts Built 10 | . . . . . . . . 4 . . . . 3 . . . . . . . 2 . 1 Authchips 1 | . . . . . . . . 1 . . . . . . . . . . . . . . . Time 417 | . . . . . . . . 152 . . . . 111 . . . . . . . 128 . 26 Total Part Build Rating 65 | . . . . . . . . 24 . . . . 19 . . . . . . . 16 . 6 Parts Repaired 14 | . . . 2 . . . 3 1 . . . . 3 . . . . 3 . . . . 2 Time 782 | . . . 168 . . . 146 38 . . . . 77 . . . . 268 . . . . 85 Parts Recycled . | . . . . . . . . . . . . . . . . . . . . . . . . Recycled Matter . | . . . . . . . . . . . . . . . . . . . . . . . . Retrieved Matter . | . . . . . . . . . . . . . . . . . . . . . . . . Retrieved Components 8 | . . . . . . . . . . . . . 6 . . . . . . . . . 2 Parts Scanalyzed 18 | . . . 2 . . . 9 . . . . . 4 . . . . . . . 3 . . Part Schematics Acquired 18 | . . . 2 . . . 9 . . . . . 4 . . . . . . . 3 . . Parts Damaged 3 | . . . 1 . . . 2 . . . . . . . . . . . . . . . . Bothacking | -11 -10 -10 -9 -9 -9 -8 -8 -7 -7 -7 -7 -6 -6 -6 -6 -6 -6 -5 -5 -5 -4 -4 -4 ------------ Run | Scr Mat Min Mat Min Exi Min Mat Fac Low Low Dat Pro Fac Ext Cet Arc Hub Fac Upp Upp Fac Was Fac Used RIF Installer . | . . . . . . . . . . . . . . . . . . . . . . . . Robots Hacked 6 | . . . . . 4 . . . . . 1 . . . . . . . . . 1 . . Non-combat 4 | . . . . . 3 . . . . . . . . . . . . . . . 1 . . Combat 2 | . . . . . 1 . . . . . 1 . . . . . . . . . . . . Robot Hacks Applied 6 | . . . . . 4 . . . . . 1 . . . . . . . . . 1 . . parse_system 5 | . . . . . 4 . . . . . 1 . . . . . . . . . . . . find_chute 1 | . . . . . . . . . . . . . . . . . . . . . 1 . . Relay Couplers Released . | . . . . . . . . . . . . . . . . . . . . . . . . Fabnet Peak Effective % . | . . . . . . . . . . . . . . . . . . . . . . . . Robots Rewired 14 | . . . . . . . . . . . . . . 14 . . . . . . . . . Allies Hacked . | . . . . . . . . . . . . . . . . . . . . . . . . Hacks Repelled . | . . . . . . . . . . . . . . . . . . . . . . . . Allies | -11 -10 -10 -9 -9 -9 -8 -8 -7 -7 -7 -7 -6 -6 -6 -6 -6 -6 -5 -5 -5 -4 -4 -4 -------- Run | Scr Mat Min Mat Min Exi Min Mat Fac Low Low Dat Pro Fac Ext Cet Arc Hub Fac Upp Upp Fac Was Fac Total Allies 38 | . 1 . 1 1 . . . 1 . . . 1 3 26 . . 1 . . 1 2 . . Largest Group 16 | . 1 . 1 2 . . . 1 . . . 1 2 16 15 3 1 . . 1 2 . . Highest-Rated Group 544 | . 10 . 10 41 . . . 10 . . . 96 64 544 478 60 26 . . 180 36 . . Highest-Rated Ally 180 | . 10 . 10 31 . . . 10 . . . 96 32 159 159 20 26 . . 180 26 . . Total Orders 6 | . 2 . 4 . . . . . . . . . . . . . . . . . . . . STAY 3 | . 1 . 2 . . . . . . . . . . . . . . . . . . . . FOLLOW 3 | . 1 . 2 . . . . . . . . . . . . . . . . . . . . Ally Attacks 228 | . . . . 6 . . . . . . . 7 4 171 28 5 . . . 7 . . . Total Damage 6270 | . . . . 44 . . . . . . . 343 138 4485 853 110 . . . 297 . . . Kills 38 | . . . . 2 . . . . . . . . 2 29 3 . . . . 2 . . . Allies Corrupted . | . . . . . . . . . . . . . . . . . . . . . . . . Allies Melted 1 | . . . . . . . . . . . . 1 . . . . . . . . . . . Intel | -11 -10 -10 -9 -9 -9 -8 -8 -7 -7 -7 -7 -6 -6 -6 -6 -6 -6 -5 -5 -5 -4 -4 -4 ------- Run | Scr Mat Min Mat Min Exi Min Mat Fac Low Low Dat Pro Fac Ext Cet Arc Hub Fac Upp Upp Fac Was Fac Robot Analysis Total 5 | . 1 . 2 . . 1 . . . . . . . 1 . . . . . . . . . Derelict Logs Recovered 6 | . . 2 . . . . . . . 1 . 2 . . . . . . 1 . . . . Drone Launches . | . . . . . . . . . . . . . . . . . . . . . . . . Drone Recoveries . | . . . . . . . . . . . . . . . . . . . . . . . . Exploration | -11 -10 -10 -9 -9 -9 -8 -8 -7 -7 -7 -7 -6 -6 -6 -6 -6 -6 -5 -5 -5 -4 -4 -4 ------------- Run | Scr Mat Min Mat Min Exi Min Mat Fac Low Low Dat Pro Fac Ext Cet Arc Hub Fac Upp Upp Fac Was Fac Turns Passed 17126 | 41 1085 725 1873 961 292 802 1698 507 278 845 26 599 1675 886 207 386 368 1077 501 122 990 55 1127 Spaces Moved 21914 | 30 641 426 1217 683 235 644 845 1025 1015 1510 89 1581 3515 1253 157 260 840 687 1212 286 1651 115 1997 Core 45 | 1 . . . . . . . . . . . . . . . . . 44 . . . . . Treads 2 | . . . . . . . 2 . . . . . . . . . . . . . . . . Legs 24 | . . . . . . . . . . . . . . . . . . 24 . . . . . Wheels 5299 | 29 641 426 1217 683 235 644 843 . . . . . . . . . 1 580 . . . . . Hover 26 | . . . . . . . . . . . . . . . . . . 25 . . 1 . . Flight 16518 | . . . . . . . . 1025 1015 1510 89 1581 3515 1253 157 260 839 14 1212 286 1650 115 1997 Fastest Speed 17 | 50 95 155 110 120 120 120 120 26 26 26 26 26 26 30 27 27 17 40 40 40 39 45 23 Average Speed 55 | 90 143 155 117 123 120 120 151 26 26 26 26 26 29 30 34 60 27 98 40 40 41 45 36 Slowest Speed 480 | 95 155 155 155 155 120 120 480 96 96 26 96 26 103 30 103 163 275 300 120 40 80 45 125 Overloaded Moves 23 | . . . . . . . . . . . . . . . . . 23 . . . . . . Propulsion Burnouts . | . . . . . . . . . . . . . . . . . . . . . . . . Robots Hopped 55 | . . . . . . . . 3 . . . . 11 4 . . 4 1 . . 24 1 7 Cave-ins Triggered 1 | . . . . . . . . . . . . . . . . . . . . . . . 1 Exploration Rate (%) 65 | 3 71 92 82 98 64 98 56 18 94 83 74 96 57 86 71 81 55 9 94 33 30 89 31 Regions Visited 23 Branch Regions 14 Pre-discovered Areas 11 | . 2 1 2 1 1 . . . . . 1 1 2 . . . . . . . . . . Known Exits Taken 16 | . 1 1 1 . . . . 1 1 1 1 1 1 1 1 1 1 1 1 1 . . . Unknown Exits Taken 5 | 1 . . . 1 1 1 1 . . . . . . . . . . . . . . . . Scrap Searched 23 | . . 1 . 2 . 1 . . 2 9 . 3 . . . . . . 4 1 . . . Spaces Dug 191 | . 12 . 3 . . . . 11 3 38 . 9 65 2 . . 12 7 . . 8 . 21 Terrain Destroyed 882 | . 41 47 37 8 . 35 28 11 3 47 . 9 65 2 4 8 491 16 . . 9 . 21 Melee 152 | . . . . . . . . 9 3 31 . 9 57 2 . . 11 2 . . 7 . 21 Projectile 54 | . . . . 8 . 1 5 2 . . . . 8 . 4 8 2 14 . . 2 . . AOE 676 | . 41 47 37 . . 34 23 . . 16 . . . . . . 478 . . . . . . Terrain Rammed . | . . . . . . . . . . . . . . . . . . . . . . . . Walls Destroyed . | . . . . . . . . . . . . . . . . . . . . . . . . Machines Disabled . | . . . . . . . . . . . . . . . . . . . . . . . . Actions | -11 -10 -10 -9 -9 -9 -8 -8 -7 -7 -7 -7 -6 -6 -6 -6 -6 -6 -5 -5 -5 -4 -4 -4 --------- Run | Scr Mat Min Mat Min Exi Min Mat Fac Low Low Dat Pro Fac Ext Cet Arc Hub Fac Upp Upp Fac Was Fac Total 25559 | 40 735 469 1538 754 241 659 1128 1232 1021 1892 90 1757 3979 1705 266 409 927 920 1224 292 1855 115 2311 Wait 2122 | . 26 14 167 26 . 2 120 140 . 335 . 117 351 340 60 37 43 66 . 1 113 . 164 Move 21785 | 29 640 425 1216 682 234 643 844 1018 1014 1509 88 1580 3493 1244 156 259 831 684 1211 285 1605 112 1983 Hop 52 | . . . . . . . . 3 . . . . 10 4 . . 4 1 . . 22 1 7 Pick Up 176 | 5 10 7 19 6 . 2 28 9 1 1 . 19 15 2 1 6 3 7 3 . 17 . 15 Fast Attach 116 | 6 5 . . 1 . . 7 5 . . . . 3 3 1 6 3 25 4 3 18 2 24 Attach 86 | . . 1 4 4 . 2 11 11 . . . . 4 3 4 5 3 15 2 . 8 . 9 Detach 47 | . 2 . . . . . 2 5 . . . . . 1 4 5 2 8 1 2 6 . 9 Swap 196 | . 13 7 53 11 2 2 25 7 2 10 1 1 9 5 4 6 7 11 . . 10 . 10 Drop 182 | . 3 3 19 4 . . 19 17 1 2 . 19 13 4 1 8 4 16 2 1 13 . 33 Fire 361 | . 35 12 48 20 . 8 57 2 . 3 . . 11 4 28 77 7 41 . . 8 . . Melee 347 | . 1 . 8 . 5 . 15 15 3 32 1 10 70 23 7 . 20 46 1 . 33 . 57 Ram . | . . . . . . . . . . . . . . . . . . . . . . . . Kick . | . . . . . . . . . . . . . . . . . . . . . . . . Crush . | . . . . . . . . . . . . . . . . . . . . . . . . Escape Stasis 36 | . . . . . . . . . . . . . . 36 . . . . . . . . . Rewire 36 | . . . . . . . . . . . . . . 36 . . . . . . . . . Trap 17 | . . . 4 . . . . . . . . 11 . . . . . . . . 2 . . Miscellaneous . | . . . . . . . . . . . . . . . . . . . . . . . . Route ------- -11/Scrapyard -10/Materials (discovered 4 exits: *Mat x2 / *Min x2) -10/Mines (discovered 2 exits: *Mat x2) -9/Materials (discovered 5 exits: *Mat x3 / *Min x2) -9/Mines (discovered 3 exits: *Mat x2 / *Exi) -9/Exiles -8/Mines (discovered 2 exits: *Mat x2) -8/Materials -7/Factory -7/Lower Caves -7/Lower Caves (discovered 2 exits: *Fac / *Dat) -7/Data Miner -6/Proximity Caves -6/Factory (discovered 5 exits: *Fac / *Low x2 / *Ext x2) -6/Extension (discovered 2 exits: *Fac / *Cet) -6/Cetus -6/Archives (discovered 3 exits: *Fac / *Hub x2) -6/Hub_04(d) (discovered 4 exits: *Fac x4) -5/Factory -5/Upper Caves -5/Upper Caves (discovered 2 exits: *Fac x2) -4/Factory -4/Waste -4/Factory (discovered 2 exits: *Res / *Upp) History --------- Turn | Location | Event 26 | -11/Scrapyard | Discovered new exit (range 15) 42 | -11/Scrapyard | Entered Materials 310 | -10/Materials | Discovered new exit (range 14) 338 | -10/Materials | Build established: Mutant 383 | -10/Materials | Discovered new exit (range 16) 461 | -10/Materials | Identified exit to Mines 811 | -10/Materials | Discovered new exit (range 11) 811 | -10/Materials | Central database locked down 1127 | -10/Materials | Entered Mines 1127 | -10/Mines | Accompanied by 1 ally 1335 | -10/Mines | Found a damaged Exp. Sensor Array with a note attached 1339 | -10/Mines | Found Prototype Device 1412 | -10/Mines | Core integrity fell below 50% 1447 | -10/Mines | Identified exit to Materials 1705 | -10/Mines | Found a hidden stash of uninstalled traps 1821 | -10/Mines | Learned location of Zion (-6) 1838 | -10/Mines | Discovered exit to Materials (range 7) 1852 | -10/Mines | Entered Materials 1852 | -9/Materials | Evolved 2 slots: Propulsion x1, Utility x1 2305 | -9/Materials | Identified Exp. Sensor Array 2468 | -9/Materials | Identified exit to Mines 2642 | -9/Materials | Discovered new exit (range 11) 2687 | -9/Materials | Repaired Broken Exp. Sensor Array? 2930 | -9/Materials | Repaired Hrd. Light Armor Plating? 2987 | -9/Materials | Discovered new exit (range 16) 3336 | -9/Materials | Discovered new exit (range 9) 3725 | -9/Materials | Entered Mines 3725 | -9/Mines | Accompanied by 1 ally 3776 | -9/Mines | Destroyed YI-UF0 3804 | -9/Mines | Lost 4 parts (1p1n1u1w) 3844 | -9/Mines | Received a Rocket Launcher from a helpful Derelict 4006 | -9/Mines | Discovered new exit (range 6) 4023 | -9/Mines | Escorted by a lone wolf Derelict 4043 | -9/Mines | Learned location of Storage (-7) 4273 | -9/Mines | A weapon hastily lodged in a ceiling crevice suddenly fell to the ground 4503 | -9/Mines | Assembled infested the area 4555 | -9/Mines | Met 8R-AWN 4565 | -9/Mines | Discovered new exit (range 15) 4591 | -9/Mines | Discovered new exit (range 5) 4686 | -9/Mines | Entered Exiles 4716 | -9/Exiles | Welcomed by 8R-AWN 4740 | -9/Exiles | Met EX-HEX 4788 | -9/Exiles | Met EX-DEC 4836 | -9/Exiles | Met EX-BIN 4959 | -9/Exiles | Discovered new exit (range 14) 4978 | -9/Exiles | Entered Mines 5069 | -8/Mines | Core integrity fell below 50% 5177 | -8/Mines | Discovered new exit (range 10) 5415 | -8/Mines | Discovered new exit (range 10) 5780 | -8/Mines | Entered Materials 5780 | -8/Materials | Evolved 2 slots: Utility x2 6048 | -8/Materials | Repaired Imp. Treads? 6217 | -8/Materials | Repaired Lgt. Nuclear Core? 6315 | -8/Materials | Build established: Scavenger-Mutant 6321 | -8/Materials | Repaired Broken Imp. VTOL Module? 6588 | -8/Materials | Lost 6 parts (1p3n2u) 7010 | -8/Materials | Discovered new exit (range 10) 7478 | -8/Materials | Entered Factory 7478 | -7/Factory | Evolved 2 slots: Propulsion x1, Utility x1 7553 | -7/Factory | Repaired Imp. Light Armor Plating 7570 | -7/Factory | Discovered new exit (range 3) 7571 | -7/Factory | Identified exit to Lower Caves 7704 | -7/Factory | Fabricated Matter Neutralizer (x2) 7745 | -7/Factory | Fabricated Imp. Hacking Suite (x1) 7786 | -7/Factory | Build established: Hacker-Sprinter 7793 | -7/Factory | Fabricated Imp. Hacking Suite (x1) 7985 | -7/Factory | Entered Lower Caves 8167 | -7/Lower Caves | Discovered new exit (range 10) 8169 | -7/Lower Caves | Identified exit to Lower Caves 8179 | -7/Lower Caves | Encountered a Warlord checkpoint 8263 | -7/Lower Caves | Entered another Lower Caves area 8269 | -7/Lower Caves | Discovered new exit (range 6) 8270 | -7/Lower Caves | Identified exit to Factory 8468 | -7/Lower Caves | Learned Factory emergency access door positions 8592 | -7/Lower Caves | Spotted B-75 Beast 8901 | -7/Lower Caves | Discovered new exit (range 9) 8904 | -7/Lower Caves | Identified exit to Data Miner 9108 | -7/Lower Caves | Entered Data Miner 9108 | -7/Data Miner | Discovered new exit (range 6) 9113 | -7/Data Miner | Met Data Miner 9122 | -7/Data Miner | Learned location of Section 7 (-2) 9122 | -7/Data Miner | Acquired the access code to Warlord's prototype stash 9126 | -7/Data Miner | Received God Mode back door access code from Data Miner 9132 | -7/Data Miner | Identified exit to Proximity Caves 9134 | -7/Data Miner | Entered Proximity Caves 9382 | -6/Proximity Caves | Escorted by Enhanced Grunt 9478 | -6/Proximity Caves | Spotted B-75 Beast 9733 | -6/Proximity Caves | Entered Factory 9733 | -6/Factory | Evolved 2 slots: Utility x2 9795 | -6/Factory | Fabricated Nuclear Pulse Array? 9863 | -6/Factory | Repaired Imp. VTOL Module? 9931 | -6/Factory | Identified exit to Lower Caves 9931 | -6/Factory | Identified exit to Extension 10103 | -6/Factory | Fabricated HERF Cannon? 10291 | -6/Factory | Incoming investigation squad redirected 10331 | -6/Factory | Repaired Lgt. Nuclear Core 10360 | -6/Factory | Repaired Tesla Rifle? 10551 | -6/Factory | Hacking Suite fried by hacking feedback 10567 | -6/Factory | Discovered new exit (range 9) 10569 | -6/Factory | Identified exit to Factory 10570 | -6/Factory | Incoming investigation squad redirected 11408 | -6/Factory | Entered Extension 11509 | -6/Extension | Rescued A7 11610 | -6/Extension | Rescued a captive Derelict 11619 | -6/Extension | Rescued a captive Derelict 11974 | -6/Extension | Spotted B-75 Beast 11995 | -6/Extension | Allies destroyed B-75 Beast 12006 | -6/Extension | Spotted B-75 Beast 12012 | -6/Extension | Build established: Commander-Sprinter 12034 | -6/Extension | Allies destroyed B-75 Beast 12120 | -6/Extension | Rescued a captive Derelict 12121 | -6/Extension | Rescued a captive Derelict 12148 | -6/Extension | Rescued a captive Derelict 12162 | -6/Extension | Rescued a captive Derelict 12164 | -6/Extension | Rescued a captive Derelict 12182 | -6/Extension | Rescued a captive Derelict 12227 | -6/Extension | Rescued a captive Derelict 12228 | -6/Extension | Rescued a captive Derelict 12243 | -6/Extension | Discovered exit to Factory (range 10) 12243 | -6/Extension | Discovered new exit (range 6) 12256 | -6/Extension | Identified exit to Cetus 12294 | -6/Extension | Entered Cetus 12294 | -6/Cetus | Accompanied by 15 allies (A7) 12299 | -6/Cetus | Acquired a Cetus Manufacturing Module code from A7 12305 | -6/Cetus | Spotted Cetus Guard 12305 | -6/Cetus | Spotted Cetus Guard 12310 | -6/Cetus | Spotted Cetus Guard 12311 | -6/Cetus | Spotted Cetus Guard 12314 | -6/Cetus | Destroyed Cetus Guard 12332 | -6/Cetus | Allies destroyed Cetus Guard 12334 | -6/Cetus | Allies destroyed Cetus Guard 12338 | -6/Cetus | Destroyed Cetus Guard 12374 | -6/Cetus | Cetus Manufacturing Module disabled 12399 | -6/Cetus | Escorted A7 to Cetus Mainframe 12403 | -6/Cetus | Failed to start Cetus Manufacturing Module 12406 | -6/Cetus | Discovered new exit (range 16) 12496 | -6/Cetus | Destroyed A7 12497 | -6/Cetus | Extracted ID and sensor layout for unrecognized location from A7's data core 12501 | -6/Cetus | Identified exit to Archives 12501 | -6/Cetus | Entered Archives 12501 | -6/Archives | Accompanied by 3 allies 12614 | -6/Archives | System corruption reached 10% 12650 | -6/Archives | Discovered exit to Factory (range 14) 12739 | -6/Archives | Build established: Hacker-Mutant 12769 | -6/Archives | Discovered new exit (range 15) 12882 | -6/Archives | Discovered new exit (range 15) 12887 | -6/Archives | Identified exit to Hub_04(d) 12887 | -6/Archives | Entered Hub_04(d) 13145 | -6/Hub_04(d) | Build established: Wizard-Sprinter 13197 | -6/Hub_04(d) | Network Hub disabled 13248 | -6/Hub_04(d) | Network Hub disabled 13252 | -6/Hub_04(d) | Network Hub disabled 13255 | -6/Hub_04(d) | System corruption reached 30% 13255 | -6/Hub_04(d) | Entered Factory 13255 | -5/Factory | Evolved 2 slots: Propulsion x1, Utility x1 13285 | -5/Factory | Lost 8 parts (1p4n3u) 13366 | -5/Factory | Lost 6 parts (1p4n1u) 13498 | -5/Factory | Repaired Shock Maul 13575 | -5/Factory | Build established: Hacker-Mutant 13873 | -5/Factory | Discovered new exit (range 15) 14080 | -5/Factory | Repaired Centrium Medium Armor Plating? 14155 | -5/Factory | First assault squad dispatched 14182 | -5/Factory | Lost 4 parts (1p3n) 14268 | -5/Factory | Incoming assault squad redirected 14280 | -5/Factory | Repaired Com. Ion Cannon? 14284 | -5/Factory | Core integrity fell below 50% 14326 | -5/Factory | Core integrity fell below 20% 14331 | -5/Factory | Identified exit to Upper Caves 14332 | -5/Factory | Entered Upper Caves 14354 | -5/Upper Caves | Lost 13 parts (1p7n3u2w) 14476 | -5/Upper Caves | Learned Factory security intel 14732 | -5/Upper Caves | Discovered new exit (range 7) 14735 | -5/Upper Caves | Identified exit to Upper Caves 14780 | -5/Upper Caves | Encountered a Warlord checkpoint 14833 | -5/Upper Caves | Entered another Upper Caves area 14834 | -5/Upper Caves | 7V-RTL showed up to help 14839 | -5/Upper Caves | 7V-RTL revealed a hidden path 14840 | -5/Upper Caves | Identified exit to Factory 14885 | -5/Upper Caves | Discovered exit to Factory (range 15) 14955 | -5/Upper Caves | Entered Factory 14955 | -4/Factory | Evolved 2 slots: Utility x2 15142 | -4/Factory | Spotted B-86 Titan 15176 | -4/Factory | Fabricated Impulse Thruster Array (x1) 15344 | -4/Factory | Incoming investigation squad redirected 15384 | -4/Factory | Fabricated Impulse Thruster Array (x1) 15403 | -4/Factory | Lost 5 parts (1p1n3u) 15448 | -4/Factory | Discovered new exit (range 9) 15451 | -4/Factory | Identified exit to Upper Caves 15944 | -4/Factory | Core integrity fell below 50% 15945 | -4/Factory | Manually triggered Chute Trap 15945 | -4/Factory | Sucked down chute 15945 | -4/Factory | Entered Waste 15949 | -4/Waste | Spotted C-40 Crusher 15960 | -4/Waste | EMP discharged 15967 | -4/Waste | Spotted C-40 Crusher 15972 | -4/Waste | Spotted C-40 Crusher 15974 | -4/Waste | Lost 4 parts (1n2u1w) 15981 | -4/Waste | Spotted C-40 Crusher 15987 | -4/Waste | Spotted C-40 Crusher 15992 | -4/Waste | Spotted C-40 Crusher 15993 | -4/Waste | Discovered new exit (range 12) 16000 | -4/Waste | Entered Factory 16142 | -4/Factory | Discovered exit to Upper Caves (range 6) 16505 | -4/Factory | Spotted B-86 Titan 16550 | -4/Factory | Incoming investigation squad redirected 16556 | -4/Factory | Fabricated Adv. Hacking Suite (x1) 16584 | -4/Factory | Discovered new exit (range 21) 16588 | -4/Factory | Identified exit to Research 16625 | -4/Factory | Incoming investigation squad redirected 16741 | -4/Factory | Repaired Impulse Thruster Array 16763 | -4/Factory | Build established: Hacker-Scout 16794 | -4/Factory | Repaired Broken Cmb. Linear Gravjet? 17089 | -4/Factory | Crushed by falling debris 17089 | -4/Factory | System corruption reached 10% 17115 | -4/Factory | Core integrity fell below 20% 17127 | -4/Factory | Self-destructed Last Messages --------------- 17109_ IDBMLI0MER&5S#C4>ZO 2S 17109_ Penetrated by Slug. 17111_ Slug penetrates Wall. 17111_ Penetrated by Slug. 17111_ Field Propulsion Array destroyed. 17113_ Lgt. Antimatter Reactor destroyed. 17114_ Penetrated by Slug. 17115_ Slug penetrates K-01 Serf. 17115_ Penetrated by Slug. 17120_ H-77 Assassin suffers critical hit (Smash). 17120_ Destroyed Coil Gun. 17120_ H-77 Assassin system corrupted by crushing effect. 17120_ H-77 Assassin knocked back. 17121_ Penetrated by Slug. 17121_ Pressure Siphon disabled. 17124_ Penetrated by Slug. 17124_ Slug penetrates Wall. 17124_ Penetrated by Slug. 17124_ Repair Station disabled. 17127_ H-77 Assassin misfires. Map ----- +----------------------------------------------------+ | ?????????????????????????????????????????????????? | | ?????????????????????????????????????????????????? | | ?????????????????????????????????????????????????? | | ?????????????????????????????????????????????????? | | ?????????????????????????????????????????????????? | | ?????????????????????????????????????????????????? | | ?????????????????????????????????????????????????? | | ?????????????????????????????????????????????????? | | ?????????????????????????????????????????????????? | | ?????????????????????????????????????????????????? | | ?????????????????????????????????????????????????? | | ????????????????????????????????????????????????? | | ?????????R???????????????????????????????????????? | | ??????????????????????#??????????????????????????? | | ?????????? ??????????????????????????????????????? | | ???????????????????????????????? ????????????????? | | ?????????????????????????????????????????????????? | | ????????#??????????????????? ????????????????????? | | ?????????????????????????????????????????????????? | | ?????????????????????????????????????????????????? | | ?????????????????????????????????????????????????? | | ????????#???????????????????????????????????#????? | | ????????# ??? ?????????????????????????????????? | | ????????# #################+################## | | ????????# R k h h | | ????????# w @ u u | | ??????#?# """ h | | ????????#R R s h | | ????????# """sss k k | | ????????# s ############################# | | ????????# """% ?????????????????????????????? | | ?????????? """" ??????????????????????????????? | | ??????????? """" ???????????????????????????????? | | ??????????? ????????????????????????????????? | | ?????????? """"?????????????????????????????????? | | ?????????? """??????????????????????????????????? | | ?????????? "????????????????????????????????????? | | ????????????????????????????????????????#????????? | | ???R???????????????????????????? ????????????????? | | ?????????????????????????????????????????????????? | | ????????????"???????????#????????????????????????? | | ?????????????????????????????????????????????????? | | ??????????????????????????#??????????????????????? | | ?????????????????????????????????????????????????? | | ???????????????????? ????????????????????????????? | | ??????????????????????????? ?????????????????????? | | ?????????????????????????????????????????????????? | | ?????????????????????????????????????????????????? | | ?????????????????????????????????????????????????? | | ?????????????????????????????????????????????????? | +----------------------------------------------------+ Best States ------------- Heat Dissipation 62 Coolant Potential 100 Energy Generation 25 Energy Capacity 325 Matter Stores 300 Matter Capacity 300 Sight Range 22 Robot Scan Range 20 Terrain Scan Range 20 Terrain Scan Density 85 ECM Strength 2 Power Amplification 30 Additional Mass Support 9 Armor Coverage 450 Resistance: EM 25 Propulsion Shielding 66 Utility Shielding 66 Evasion (%) 72 Targeting Accuracy 8 Melee Accuracy 6 Target Analysis 6 Recoil Reduction 3 Salvage Targeting 2 Offensive Hacking 48 Defensive Hacking 24 Authchip Count 1 Item Schematics ----------------- Exp. Sensor Array | -9/Materials | Scanalyzed Hacking Suite | -9/Materials | Scanalyzed Hcp. Storage Unit | -8/Materials | Scanalyzed Med. Storage Unit | -8/Materials | Scanalyzed System Shield | -8/Materials | Scanalyzed Mni. Grenade Launcher | -8/Materials | Scanalyzed Imp. VTOL Module | -8/Materials | Scanalyzed Imp. Light Armor Plating | -8/Materials | Scanalyzed Lgt. Nuclear Core | -8/Materials | Scanalyzed Datajack | -8/Materials | Scanalyzed Imp. Signal Interpreter | -8/Materials | Scanalyzed Imp. Hacking Suite | -7/Factory | Hacked Combat Drone Bay | -7/Data Miner | Free Lgt. Regenerative Plating | -7/Data Miner | Free Biomechanical Wings | -7/Data Miner | Free Exp. Propulsion Shielding | -7/Data Miner | Free Force Rifle | -7/Data Miner | Free Nuclear Pulse Array | -7/Data Miner | Free Adv. Drone Bay | -7/Data Miner | Free Tesla Rifle | -7/Data Miner | Free Thermic Laser | -7/Data Miner | Free Mic. Fission Core | -7/Data Miner | Free Imp. Heavy Treads | -7/Data Miner | Free Adv. ECM Suite | -6/Factory | Scanalyzed Matter Neutralizer | -6/Factory | Scanalyzed Imp. EM Pulse Cannon | -6/Factory | Scanalyzed Adv. Reaction Control System | -6/Factory | Hacked HERF Cannon | -6/Factory | Hacked Adv. Hacking Suite | -6/Factory | Hacked Adv. System Shield | -6/Factory | Hacked Adv. Datajack | -6/Factory | Hacked Shock Maul | -6/Factory | Scanalyzed Adv. System Restoration Module | -6/Extension | Hacked Adv. Terrain Scanner | -6/Hub_04(d) | Hacked Impulse Thruster Array | -4/Factory | Hacked Hvy. Neutron Cannon | -4/Factory | Scanalyzed Imp. Melee Analysis Suite | -4/Factory | Scanalyzed Imp. Cloaking Device | -4/Factory | Scanalyzed Robot Schematics ------------------ Y-54 Guardian | -7/Data Miner | Free L-41 Fighter | -7/Data Miner | Free S-27 Virus | -7/Data Miner | Free G-50 Soldier | -7/Data Miner | Free H-66 Slayer | -7/Data Miner | Free M-28 Smith | -6/Factory | Hacked Fabricated ------------ Matter Neutralizer | x2 | -7/Factory | Preloaded Imp. Hacking Suite | x1 | -7/Factory | Authchip Imp. Hacking Suite | x1 | -7/Factory Nuclear Pulse Array | x2 | -6/Factory | Preloaded HERF Cannon | x1 | -6/Factory Impulse Thruster Array | x1 | -4/Factory Impulse Thruster Array | x1 | -4/Factory Adv. Hacking Suite | x1 | -4/Factory Alien Tech Used ----------------- None Achievements -------------- None Challenges ------------ None Game ------ Seed WaveStealthScythe Manual? 0 Play Time 04:23:10 Cumulative 395.2 hours Start 2022.06.18 @ 22:19:50 End 2022.06.19 @ 02:40:32 Sessions 1 Manual Loads 0 Difficulty Rogue Special Mode None Game No. 103 Rogue 103 Adventurer 0 Explorer 0 Win Type - Total 20 Types 15/1/3/0/0/0/0/1/0 Lore% 91 Gallery% 92 Achievement% 77 Wizard Run 0 Options --------- ASCII 0 Keyboard 0 Movement Numpad Keybinds 0 Fullscreen 1 Font 14/SmallcapsGlow Map View 84x54 Tactical HUD 1 Map Filters NONE Filters NONE Steam 1 RUN: 179c53a4-48c6-484f-9d47-f71e364cbdb3